bitfinex-derivatives/quotes_ETHF0:USTF0_20250130
["timestamp","ask_amount","ask_price","bid_price","bid_amount"]
[1738215014440,1.29923527,3190.0,3189.8,0.62702]
[1738215014743,0.5376,3189.9,3189.8,0.62702]
[1738215014938,1.0506,3189.9,3189.8,0.62702]
[1738215015542,1.0506,3189.9,3189.8,1.92625527]
[1738215015746,1.0506,3189.9,3189.8,0.62702]
[1738215015944,1.0506,3189.9,3189.7,0.62703]
[1738215016140,0.5173,3189.8,3189.7,0.62703]
[1738215017455,0.5173,3189.8,3189.4,3.2078]
[1738215017655,0.5173,3189.8,3189.7,0.62704]
[1738215022154,1.0506,3189.9,3189.8,0.62702]
[1738215028264,1.0506,3189.9,3189.4,3.7355]
[1738215028465,0.5072,3189.8,3189.7,0.62703]
[1738215029467,0.5072,3189.8,3189.4,3.7355]
[1738215029766,1.13423,3189.8,3189.5,0.62707]
[1738215029969,0.5072,3189.8,3189.4,3.2078]
[1738215030164,0.5072,3189.8,3189.6,0.62705]
[1738215030866,0.5072,3189.8,3189.4,3.2078]
[1738215031170,0.5072,3189.8,3189.7,0.62704]
[1738215031568,1.0506,3189.9,3189.8,0.62702]
[1738215032366,0.513,3189.9,3189.8,0.62702]
[1738215033868,3.7569,3190.2,3190.1,0.62696]
[1738215034068,4.2729,3190.2,3190.1,0.62696]
[1738215034261,0.5395,3190.3,3189.9,2.74250834]
[1738215034468,0.5395,3190.3,3190.2,0.62694]
[1738215034666,0.5395,3190.3,3190.0,0.5491]
[1738215034864,0.5395,3190.3,3190.0,0.62697]
[1738215035667,1.16642,3190.3,3190.0,0.62697]
[1738215036569,1.16642,3190.3,3189.8,3.2078]
[1738215036570,0.5395,3190.3,3189.8,3.2078]
[1738215036874,0.5395,3190.3,3190.2,0.62694]
[1738215046178,1.0651,3190.5,3190.4,0.6269]
[1738215046565,1.0651,3190.5,3190.4,1.92462942]
[1738215046773,3.2078,3190.6,3190.5,0.62688]
[1738215046976,0.508,3190.7,3190.6,0.62686]
[1738215047171,0.508,3190.7,3190.6,1.92458942]
[1738215048782,0.508,3190.7,3190.6,0.62686]
[1738215052375,0.00470285,3190.8,3190.5,1.0767]
[1738215052573,0.00470285,3190.8,3190.7,0.62684]
[1738215060987,0.00470285,3190.8,3190.5,1.0767]
[1738215061279,0.00470285,3190.8,3190.6,0.62685]
[1738215061484,0.52920285,3190.8,3190.6,0.62685]
[1738215061683,41.3033,3190.7,3190.6,0.62685]
[1738215062078,0.5033,3190.7,3190.6,0.62685]
[1738215065677,0.53160285,3190.8,3190.7,0.62684]
[1738215065883,0.00470285,3190.8,3190.7,1.15524]
[1738215066087,0.00470285,3190.8,3190.7,1.69124]
[1738215077294,0.4997,3191.5,3191.4,0.62671]
[1738215077599,0.4997,3191.5,3191.4,3.3676275]
[1738215078197,0.4997,3191.5,3191.4,3.9110275]
[1738215080292,0.4997,3191.5,3191.4,3.3676275]
[1738215082598,0.4997,3191.5,3191.4,0.62671]
[1738215082798,0.4997,3191.5,3191.3,3.83452]
[1738215083294,0.4997,3191.5,3191.3,3.2078]
[1738215083489,0.4997,3191.5,3191.4,0.62671]
[1738215088804,0.4997,3191.5,3191.3,3.2078]
[1738215089002,0.4997,3191.5,3191.3,3.83452]
[1738215089403,0.4997,3191.5,3191.3,3.83451]
[1738215090299,0.4997,3191.5,3191.3,3.2078]
[1738215090494,0.4997,3191.5,3191.4,0.62671]
[1738215090699,0.4997,3191.5,3191.3,3.83452]
[1738215091508,0.62673,3191.3,3191.0,1.92372988]
[1738215091704,0.5369,3191.2,3190.8,1.29694988]
[1738215092005,0.497,3191.1,3190.8,1.92375988]
[1738215092205,1.0003,3191.1,3190.8,1.92375988]
[1738215092603,1.0003,3191.1,3190.8,1.29694988]
[1738215092904,0.62682,3190.8,3190.2,0.63163285]
[1738215093107,1.92380988,3190.6,3190.2,1.92858273]
[1738215093301,0.5318,3190.5,3190.2,1.92858273]
[1738215093601,0.62692,3190.4,3190.2,1.30165273]
[1738215093799,1.6844,3190.5,3190.2,1.30165273]
[1738215093993,1.0575,3190.5,3190.2,1.30165273]
[1738215094505,0.6269,3190.4,3190.2,0.00470285]
[1738215094899,0.62692,3190.3,3190.2,0.00470285]
[1738215098210,0.62692,3190.3,3190.0,3.2078]
[1738215098211,2.74174553,3190.3,3190.0,3.2078]
[1738215098512,0.62703,3189.8,3189.4,3.83488]
[1738215098710,1.0362,3189.7,3189.4,3.83488]
[1738215098912,2.74174553,3189.6,3189.4,3.2078]
[1738215099099,2.74174553,3189.6,3188.8,0.62721]
[1738215099100,0.62714,3189.3,3188.8,0.62721]
[1738215099299,2.74174553,3189.3,3188.7,3.2078]
[1738215099500,1.0362,3189.7,3188.7,3.2078]
[1738215099501,0.00470285,3189.4,3188.7,3.21250285]
[1738215099705,0.00470285,3189.4,3189.3,0.62712]
[1738215105813,0.00470285,3189.4,3189.2,3.2078]
[1738215106111,0.00470285,3189.4,3189.3,0.62712]
[1738215113015,0.00470285,3189.4,3189.2,3.2078]
[1738215113221,0.63180285,3189.4,3189.2,3.2078]
[1738215113417,1.5692,3189.3,3189.2,3.2078]
[1738215113613,42.3692,3189.3,3189.2,3.2078]
[1738215114214,1.5692,3189.3,3189.2,3.2078]
[1738215115323,1.0612,3189.3,3189.2,3.83494]
[1738215115620,0.00470285,3189.4,3189.2,3.83494]
[1738215115924,0.00470285,3189.4,3189.3,0.62712]
[1738215117720,1e-08,3189.4,3189.3,0.62712]
[1738215118027,3.2078,3190.3,3190.2,0.62694]
[1738215118225,3.2078,3190.3,3190.1,0.62695]
[1738215119135,0.00470285,3190.5,3190.3,0.62691]
[1738215120116,0.00470285,3190.5,3190.0,0.5162]
[1738215120316,2.74644838,3190.5,3189.9,3.2078]
[1738215120516,0.62698,3190.1,3189.9,3.2078]
[1738215120715,2.74644838,3190.5,3189.9,3.2078]
[1738215120917,0.62695,3190.2,3189.9,3.2078]
[1738215121130,3.2078,3190.3,3189.7,1.0798]
[1738215121321,2.24178,3190.1,3189.7,1.16353]
[1738215121517,1.6148,3190.1,3189.8,0.62701]
[1738215123438,42.4148,3190.1,3189.8,0.62701]
[1738215124425,43.04177,3190.1,3189.7,1.16353]
[1738215124624,42.4148,3190.1,3189.7,0.5365]
[1738215125629,43.04177,3190.1,3189.7,1.16353]
[1738215125829,42.4148,3190.1,3189.8,0.62701]
[1738215126024,42.4148,3190.1,3189.3,3.7396]
[1738215126326,0.62704,3189.7,3189.3,4.8689]
[1738215126527,1.0364,3189.6,3189.3,4.33711]
[1738215126739,1.66346,3189.6,3189.3,3.2078]
[1738215127031,1.0364,3189.6,3189.3,3.83491]
[1738215128027,1.0364,3189.6,3189.3,3.2078]
[1738215128227,0.6271,3189.4,3189.0,1.63187]
[1738215128431,0.6271,3189.4,3189.0,1.12937]
[1738215128627,0.6271,3189.4,3189.0,0.62717]
[1738215129233,0.529,3189.5,3189.0,0.62717]
[1738215129430,1.15608,3189.5,3189.0,0.62717]
[1738215131029,1.15608,3189.5,3189.1,0.62716]
[1738215132032,0.529,3189.5,3189.1,0.62716]
[1738215132241,0.529,3189.5,3189.2,0.62714]
[1738215132428,0.529,3189.5,3188.9,5.94954553]
[1738215132629,0.529,3189.5,3189.1,0.62714]
[1738215134543,0.529,3189.5,3189.0,0.62718]
[1738215134838,0.529,3189.5,3189.1,0.62715]
[1738215136341,0.529,3189.5,3189.2,0.62714]
[1738215136535,0.529,3189.5,3189.3,0.5274]
[1738215136837,3.2078,3189.9,3189.7,0.62703]
[1738215137039,1.0132,3190.0,3189.5,2.74174553]
[1738215137233,1.0132,3190.0,3189.9,0.627]
[1738215137429,1.0132,3190.0,3189.8,0.62701]
[1738215138449,1.0132,3190.0,3189.5,2.74174553]
[1738215138635,40.8,3190.3,3190.2,0.62694]
[1738215138837,4.2548,3190.4,3190.3,0.62692]
[1738215139137,1.047,3190.4,3190.3,0.62692]
[1738215141149,0.5121,3190.4,3190.3,0.62692]
[1738215143745,40.80470285,3190.5,3190.0,1.6373]
[1738215144148,40.80470285,3190.5,3190.4,0.6269]
[1738215145157,40.80470285,3190.5,3190.0,1.6373]
[1738215145353,40.80470285,3190.5,3190.3,0.62692]
[1738215147049,40.80470285,3190.5,3190.0,1.6373]
[1738215147352,41.43159285,3190.5,3190.1,0.62695]
[1738215147556,40.80470285,3190.5,3190.1,0.62695]
[1738215147760,40.80470285,3190.5,3190.0,1.6373]
[1738215147957,40.80470285,3190.5,3190.2,0.62694]
[1738215148953,41.43159285,3190.5,3190.2,0.62694]
[1738215151461,44.01250285,3190.5,3190.0,1.6373]
[1738215151655,0.62692,3190.3,3190.0,1.17357]
[1738215151967,0.5067,3190.2,3190.0,1.17357]
[1738215152154,0.5285,3190.1,3189.7,0.5284]
[1738215152357,3.7363,3190.1,3189.0,3.2078]
[1738215152559,0.62707,3189.6,3189.2,0.62712]
[1738215152758,1.0352,3189.5,3189.2,0.62712]
[1738215152959,1.5725,3189.5,3189.3,0.62711]
[1738215156867,1.5725,3189.5,3189.4,0.6271]
[1738215157457,3.2078,3190.1,3189.1,0.5284]
[1738215157663,0.4981,3189.8,3189.1,0.5284]
[1738215157863,1.12512,3189.8,3189.4,0.62709]
[1738215159670,0.4981,3189.8,3189.1,0.5284]
[1738215160069,0.4981,3189.8,3189.4,0.62708]
[1738215160363,1.12512,3189.8,3189.4,0.62708]
[1738215160570,0.4981,3189.8,3189.4,3.2078]
[1738215160772,1.0626,3190.0,3189.7,0.62704]
[1738215160967,1.0626,3190.0,3189.8,0.62702]
[1738215161167,1.0626,3190.0,3189.9,0.627]
[1738215161371,1.0626,3190.0,3189.8,0.62701]
[1738215161573,1.0626,3190.0,3189.9,0.627]
[1738215162067,3.7321,3190.1,3189.5,3.76984553]
[1738215162269,1.5708,3190.4,3190.0,3.2078]
[1738215162568,0.00470285,3190.5,3190.4,0.6269]
[1738215163367,0.00470285,3190.5,3190.1,1.0358]
[1738215163571,0.00470285,3190.5,3190.2,0.62692]
[1738215163964,0.00470285,3190.5,3190.3,0.62692]
[1738215164673,0.00470285,3190.5,3190.2,0.62693]
[1738215164877,0.63158285,3190.5,3190.2,0.62693]
[1738215167977,0.00470285,3190.5,3190.4,0.6269]
[1738215169469,0.00470285,3190.5,3190.3,0.62692]
[1738215169970,0.00470285,3190.5,3190.4,0.6269]
[1738215171369,0.00470285,3190.5,3190.1,0.5068]
[1738215171573,0.00470285,3190.5,3190.3,0.62691]
[1738215171769,0.00470285,3190.5,3190.1,0.62695]
[1738215171970,0.62691,3190.4,3190.1,0.62695]
[1738215172475,2.74644838,3190.5,3190.0,3.2078]
[1738215172668,3.37334838,3190.5,3190.0,3.2078]
[1738215173069,3.37334838,3190.5,3190.1,0.62695]
[1738215174776,3.37334838,3190.5,3190.2,0.62694]
[1738215175076,2.74644838,3190.5,3190.2,0.62694]
[1738215179174,2.74644838,3190.5,3190.0,3.2078]
[1738215179379,3.37333838,3190.5,3190.1,0.62695]
[1738215179874,3.37333838,3190.5,3190.2,0.62694]
[1738215180471,3.37333838,3190.5,3190.1,0.62695]
[1738215180869,2.74644838,3190.5,3190.3,0.62692]
[1738215184774,2.74644838,3190.5,3190.4,0.6269]
[1738215190086,2.74644838,3190.5,3190.2,0.5223]
[1738215190278,2.74644838,3190.5,3190.4,0.6269]
[1738215190678,2.74644838,3190.5,3190.2,0.5223]
[1738215190884,2.74644838,3190.5,3190.4,0.6269]
[1738215197795,0.00470285,3190.5,3190.4,0.6269]
[1738215203995,43.54644838,3190.5,3190.3,0.62691]
[1738215204196,1.0441,3190.4,3190.3,0.62691]
[1738215205500,1.5616,3190.4,3190.3,0.62691]
[1738215206595,1.5616,3190.4,3190.2,0.5223]
[1738215206596,1.5616,3190.4,3190.2,1.14923]
[1738215208000,1.5616,3190.4,3190.3,0.62692]
[1738215208395,1.5616,3190.4,3190.2,0.62694]
[1738215208599,1.5616,3190.4,3189.9,4.2861]
[1738215208789,5.94954553,3190.2,3189.9,1.70528]
[1738215209098,5.94954553,3190.2,3189.9,1.17628]
[1738215209299,5.94954553,3190.2,3189.9,0.62698]
[1738215209491,5.94954553,3190.2,3189.7,0.62703]
[1738215209692,2.74174553,3189.9,3189.7,0.62703]
[1738215209892,1.062,3189.8,3189.7,0.62703]
[1738215210197,1.5672,3189.8,3189.7,0.62703]
[1738215214005,6.57649553,3190.2,3189.5,1.041]
[1738215214300,5.94954553,3190.2,3189.6,1.56766]
[1738215214497,5.94954553,3190.2,3190.1,0.62696]
[1738215215101,0.5283,3190.4,3190.3,0.62692]
[1738215215301,0.00470285,3190.5,3190.4,0.6269]
[1738215215804,0.00470285,3190.5,3190.1,0.5394]
[1738215215805,2.74644838,3190.5,3190.1,1.0578]
[1738215216104,2.74644838,3190.5,3190.2,0.62693]
[1738215216299,2.74644838,3190.5,3190.1,1.0578]
[1738215216505,2.74644838,3190.5,3190.3,0.62692]
[1738215219703,2.74644838,3190.5,3190.2,0.62693]
[1738215220800,2.74644838,3190.5,3190.3,0.62691]
[1738215221006,2.74644838,3190.5,3190.1,1.0578]
[1738215221202,2.74644838,3190.5,3190.4,0.6269]
[1738215223212,0.00470285,3190.5,3190.4,0.6269]
[1738215224710,2.74644838,3190.5,3189.8,3.2078]
[1738215225011,5.94954553,3190.2,3190.1,0.62696]
[1738215225508,3.26434553,3190.2,3190.1,0.62696]
[1738215232310,3.26434553,3190.2,3190.0,0.62697]
[1738215232614,0.5172,3190.1,3190.0,0.62697]
[1738215233118,0.5172,3190.1,3189.9,0.62699]
[1738215233119,1.0364,3190.1,3189.9,0.62699]
[1738215233318,4.2442,3190.1,3189.9,0.62699]
[1738215234216,4.2442,3190.1,3189.4,4.7715]
[1738215234409,0.62699,3190.0,3189.7,0.62704]
[1738215234715,40.8,3189.9,3189.7,0.62704]
[1738215236619,40.8,3189.9,3189.7,0.62703]
[1738215239317,0.62699,3190.0,3189.7,0.62703]
[1738215239516,4.2442,3190.1,3189.4,4.7715]
[1738215239911,45.0442,3190.1,3189.9,0.62699]
[1738215240317,45.0442,3190.1,3190.0,0.62698]
[1738215240517,45.67117,3190.1,3189.5,1.56771]
[1738215240718,45.67117,3190.1,3189.9,0.627]
[1738215241117,0.62698,3190.0,3189.8,0.62701]
[1738215241718,0.62698,3190.0,3189.9,0.627]
[1738215241919,0.627,3189.9,3189.8,0.62701]
[1738215242119,45.0442,3190.1,3189.4,4.7715]
[1738215242426,3.36876553,3189.8,3189.7,0.62703]
[1738215242626,2.74174553,3189.8,3189.7,0.62703]
[1738215243130,3.36877553,3189.8,3189.6,0.62705]
[1738215243322,3.7453,3189.7,3189.1,0.5153]
[1738215243522,2.74174553,3189.5,3189.4,0.6271]
[1738215246332,2.74174553,3189.5,3189.2,0.62714]
[1738215247130,2.74174553,3189.5,3189.1,1.046]
[1738215247321,2.74174553,3189.5,3189.3,0.6271]
[1738215248024,2.74174553,3189.5,3189.1,1.046]
[1738215248323,3.36883553,3189.5,3189.2,0.62713]
[1738215249128,2.74174553,3189.5,3189.2,0.62713]
[1738215249923,3.36884553,3189.5,3189.1,1.046]
[1738215250230,3.36884553,3189.5,3189.2,0.62713]
[1738215250926,2.74174553,3189.5,3189.3,0.6271]
[1738215251124,2.74174553,3189.5,3189.4,0.6271]
[1738215251526,2.74174553,3189.5,3189.3,0.6271]
[1738215251726,2.74174553,3189.5,3189.4,0.6271]
[1738215252124,2.74174553,3189.5,3189.3,0.6271]
[1738215252525,1.29880252,3189.4,3189.3,0.6271]
[1738215253034,1.29880252,3189.4,3189.1,0.5307]
[1738215253629,1.29880252,3189.4,3189.2,0.62713]
[1738215256434,1.92591252,3189.4,3189.1,1.15786]
[1738215256639,1.29880252,3189.2,3189.1,1.15786]
[1738215257838,1.29880252,3189.2,3188.9,3.2078]
[1738215258041,1.29880252,3189.0,3188.9,3.2078]
[1738215258434,42.09880252,3189.0,3188.9,3.2078]
[1738215258839,42.09880252,3189.0,3188.8,0.62721]
[1738215259538,42.09880252,3189.0,3188.7,1.14302285]
[1738215259746,1.29880252,3188.8,3188.7,1.14304285]
[1738215259941,1.29880252,3188.8,3188.7,0.51580285]
[1738215260242,41.42719,3189.0,3188.9,0.6272]
[1738215260243,42.09880252,3189.0,3188.9,0.6272]
[1738215260434,1.29880252,3189.0,3188.7,0.51580285]
[1738215260635,1.29880252,3189.0,3188.8,0.62721]
[1738215260836,40.8,3188.9,3188.8,0.62721]
[1738215261644,40.8,3188.9,3188.7,1.14303285]
[1738215262037,1.29880252,3188.8,3188.7,0.51580285]
[1738215262337,1.29880252,3188.8,3188.7,1.14304285]
[1738215262537,1.29880252,3188.8,3188.7,0.51580285]
[1738215263332,1.29880252,3188.8,3188.7,1.14304285]
[1738215263742,40.8,3188.9,3188.8,0.62722]
[1738215263943,0.62716,3189.1,3188.8,0.62722]
[1738215264443,40.8,3189.0,3188.8,0.62722]
[1738215265245,40.8,3189.0,3188.7,2.44183537]
[1738215265542,41.42718,3189.0,3188.7,2.44183537]
[1738215265731,40.8,3189.0,3188.7,2.44183537]
[1738215266342,41.42718,3189.0,3188.7,2.44183537]
[1738215267745,42.72598252,3189.0,3188.7,1.81460537]
[1738215268948,42.72598252,3189.0,3188.7,0.51580285]
[1738215269339,0.62721,3188.9,3188.7,0.51580285]
[1738215269542,0.5158,3188.8,3188.7,0.51580285]
[1738215269746,1.0285,3188.8,3188.7,0.00470285]
[1738215269941,1.5477,3188.8,3188.7,0.00470285]
[1738215270144,2.17492,3188.8,3188.7,0.00470285]
[1738215270545,1.5477,3188.8,3188.7,0.00470285]
[1738215272449,2.84650252,3188.8,3188.7,0.00470285]
[1738215272641,3.47372252,3188.8,3188.7,0.00470285]
[1738215281554,3.47372252,3188.8,3188.1,3.2078]
[1738215281555,0.62733,3188.2,3188.1,3.2078]
[1738215281855,1.92613252,3188.2,3188.1,3.2078]
[1738215292364,1.29880252,3188.2,3188.1,3.2078]
[1738215292660,1.92613252,3188.2,3188.1,3.2078]
[1738215293762,1.29880252,3188.2,3187.8,0.54200285]
[1738215293963,40.8,3188.1,3187.8,0.54200285]
[1738215294166,1.92618252,3188.0,3187.8,0.54200285]
[1738215294360,2.43938252,3188.0,3187.8,0.54200285]
[1738215294760,0.62739,3187.9,3187.8,0.54200285]
[1738215294963,0.62739,3187.9,3187.8,0.00470285]
[1738215298362,1.56855,3187.8,3186.7,0.4997]
[1738215298655,1.29880252,3186.9,3186.8,0.62761]
[1738215298966,1.29880252,3187.1,3186.9,0.62759]
[1738215299272,1.29880252,3187.1,3187.0,0.5283]
[1738215299764,42.72635252,3187.1,3187.0,0.5283]
[1738215300163,42.09880252,3187.1,3187.0,0.5283]
[1738215300368,40.8,3187.1,3187.0,0.5283]
[1738215300567,3.2078,3187.3,3187.0,0.5283]
[1738215300759,3.2078,3187.3,3187.1,2.45944252]
[1738215300956,3.2078,3187.3,3187.2,1.14393]
[1738215301165,3.2078,3187.3,3187.2,0.5164]
[1738215301367,5.13411252,3187.3,3187.2,0.5164]
[1738215302664,5.13411252,3187.3,3187.1,0.5331]
[1738215302864,5.13411252,3187.3,3187.1,1.16065]
[1738215303065,0.5466,3187.2,3187.1,1.16065]
[1738215303672,0.5466,3187.2,3187.1,0.5331]
[1738215305069,4.50660252,3187.3,3187.2,0.62753]
[1738215307562,5.13411252,3187.3,3187.1,1.16064]
[1738215307761,5.13411252,3187.3,3187.1,1.16063]
[1738215307973,4.50660252,3187.3,3187.2,0.62753]
[1738215308169,40.8,3187.3,3187.2,0.62753]
[1738215308475,4.50660252,3188.1,3187.1,3.40077252]
[1738215308771,3.2078,3188.1,3188.0,1.92617252]
[1738215308970,1.30350537,3188.5,3188.3,0.6273]
[1738215309271,1.93077537,3188.5,3188.4,0.5126]
[1738215309467,1.93078537,3188.5,3188.2,0.62732]
[1738215309770,1.29880252,3188.3,3188.2,0.62732]
[1738215310272,1.92612252,3188.3,3188.1,0.5122]
[1738215310477,1.29880252,3188.3,3188.1,0.5122]
[1738215310667,46.2291,3188.4,3188.1,1.13954]
[1738215310967,45.074,3188.4,3188.2,0.62733]
[1738215311377,45.7013,3188.4,3188.2,0.62733]
[1738215312072,0.62732,3188.3,3188.1,0.5122]
[1738215312568,0.62732,3188.3,3188.1,1.13955]
[1738215312875,45.7013,3188.4,3188.1,1.13955]
[1738215313077,45.074,3188.4,3188.2,0.62733]
[1738215313271,40.8,3188.4,3188.1,0.5122]
[1738215313569,40.8,3188.4,3188.3,0.62731]
[1738215313876,0.00470285,3188.5,3188.1,0.5122]
[1738215314072,0.00470285,3188.5,3188.4,0.62729]
[1738215314269,0.00470285,3188.5,3188.2,0.62731]
[1738215314466,0.6273,3188.4,3188.1,1.13954]
[1738215314672,3.2078,3188.4,3188.1,0.5122]
[1738215314975,0.62733,3188.2,3188.1,0.5122]
[1738215315473,2.25152,3188.3,3188.1,0.5122]
[1738215317879,40.8,3188.2,3188.1,0.5122]
[1738215319271,3.2078,3188.4,3188.1,0.5122]
[1738215319478,0.00470285,3188.5,3188.4,0.62729]
[1738215320469,0.00470285,3188.5,3188.1,3.25779107]
[1738215320773,0.00470285,3188.5,3188.3,0.62731]
[1738215321077,0.00470285,3188.5,3188.1,0.5122]
[1738215321271,0.63198285,3188.5,3188.1,1.13954]
[1738215321467,1.65098285,3188.5,3188.1,1.13954]
[1738215322473,1.02370285,3188.5,3188.1,1.13954]
[1738215322778,0.62729,3188.4,3188.1,1.13954]
[1738215323177,0.62732,3188.3,3188.1,0.5122]
[1738215323372,0.6273,3188.4,3188.1,0.5122]
[1738215323878,3.37289107,3188.4,3188.1,0.5122]
[1738215324072,0.62733,3188.3,3188.0,3.2078]
[1738215324277,2.74559107,3188.4,3188.0,3.2078]
[1738215324278,0.62734,3188.2,3188.0,3.2078]
[1738215324584,0.4961,3188.1,3188.0,3.2078]
[1738215325079,3.86904107,3188.1,3188.0,3.2078]
[1738215325879,3.24169107,3188.1,3187.6,0.5]
[1738215326074,0.5177,3188.0,3187.8,0.6274]
[1738215326273,0.5177,3188.0,3187.9,0.62739]
[1738215326478,41.3177,3188.0,3187.9,0.62739]
[1738215327779,40.8,3188.0,3187.9,0.62739]
[1738215328081,6.58069107,3188.4,3187.6,2.06863]
[1738215328478,6.58069107,3188.4,3188.0,0.62736]
[1738215328683,40.8,3188.3,3188.0,0.62736]
[1738215329692,0.62733,3188.2,3187.9,0.62738]
[1738215330382,0.62736,3188.1,3187.7,0.62741]
[1738215330581,0.62736,3188.1,3187.6,0.5]
[1738215330582,2.74559107,3188.1,3187.6,0.5]
[1738215330785,1.68128,3188.0,3187.6,1.12743]
[1738215330974,1.68128,3188.0,3187.6,0.5]
[1738215330975,1.0539,3188.0,3187.6,0.5]
[1738215331176,0.62742,3187.8,3187.6,0.5]
[1738215331388,1.1308,3187.9,3187.6,0.5]
[1738215331581,1.1308,3187.9,3187.5,3.2078]
[1738215331582,0.62742,3187.8,3187.5,3.2078]
[1738215331785,2.74559107,3187.8,3187.1,0.505]
[1738215331981,0.62745,3187.7,3187.3,0.6275]
[1738215333790,2.74559107,3187.8,3187.4,0.62748]
[1738215333990,2.74559107,3187.8,3187.6,0.62745]
[1738215334181,2.74559107,3187.8,3187.1,0.505]
[1738215334182,3.37300107,3187.8,3187.5,0.62746]
[1738215334787,0.62745,3187.6,3187.3,0.6275]
[1738215334983,0.62744,3187.7,3187.4,0.62748]
[1738215335178,0.5491,3187.5,3187.4,0.62748]
[1738215336189,0.5491,3187.5,3187.3,0.6275]
[1738215336483,0.5491,3187.5,3187.1,0.505]
[1738215336484,0.62753,3187.2,3187.1,0.505]
[1738215336689,0.62753,3187.2,3187.0,3.2078]
[1738215336990,0.5209,3187.1,3187.0,3.2078]
[1738215338686,1.14845,3187.1,3187.0,3.2078]
[1738215338897,1.14845,3187.1,3186.8,1.1289]
[1738215339190,0.514,3187.0,3186.8,1.1289]
[1738215339389,0.514,3187.0,3186.7,0.00470285]
[1738215339592,0.4972,3186.9,3186.7,0.63231285]
[1738215339991,0.5209,3187.1,3186.7,0.00470285]
[1738215340193,40.8,3187.0,3186.9,0.62757]
[1738215341095,0.5209,3187.1,3187.0,0.62757]
[1738215341497,41.3209,3187.1,3187.0,0.62757]
[1738215342294,0.5209,3187.1,3186.7,0.00470285]
[1738215342497,0.5209,3187.1,3187.0,0.62757]
[1738215342698,0.5209,3187.1,3186.7,0.00470285]
[1738215342892,0.5209,3187.1,3186.9,0.62757]
[1738215343693,0.5209,3187.1,3187.0,0.62757]
[1738215344092,2.74559107,3187.2,3187.0,0.62757]
[1738215345996,3.37313107,3187.2,3186.9,0.62758]
[1738215346300,3.37313107,3187.2,3186.8,0.6276]
[1738215346301,0.62755,3187.1,3186.8,0.6276]
[1738215346501,1.0493,3187.0,3186.8,0.6276]
[1738215346693,1.0493,3187.0,3186.8,0.62761]
[1738215346895,0.5065,3186.9,3186.8,0.62761]
[1738215347096,0.5065,3186.9,3186.7,0.00470285]
[1738215347097,3.25209107,3186.9,3186.7,0.00470285]
[1738215347303,3.87969107,3186.9,3186.7,0.00470285]
[1738215348400,40.8,3186.8,3186.7,0.00470285]
[1738215349091,5.95339107,3187.2,3186.7,0.00470285]
[1738215349297,3.2078,3187.2,3187.1,0.62755]
[1738215354003,6.58092107,3187.2,3187.1,0.62755]
[1738215354197,5.95339107,3187.2,3187.1,0.62755]
[1738215358008,5.95339107,3187.2,3186.7,0.00470285]
[1738215358308,6.58092107,3187.2,3187.0,0.62755]
[1738215358609,6.58092107,3187.2,3186.7,0.00470285]
[1738215358610,5.95339107,3187.2,3186.7,0.00470285]
[1738215358803,6.58092107,3187.2,3187.0,0.62756]
[1738215360697,5.95339107,3187.2,3186.7,0.00470285]
[1738215361310,5.95339107,3187.2,3187.0,0.62756]
[1738215362908,6.58093107,3187.2,3187.0,0.62756]
[1738215363303,5.95339107,3187.2,3186.7,0.00470285]
[1738215363502,0.62756,3187.1,3186.9,0.62759]
[1738215363902,0.5322,3187.0,3186.9,0.62759]
[1738215366106,6.58093107,3187.2,3186.9,0.62759]
[1738215366506,6.58093107,3187.2,3187.0,1.13387]
[1738215367108,6.58093107,3187.2,3187.0,0.5063]
[1738215367810,0.5096,3187.3,3187.0,0.5063]
[1738215368015,0.5096,3187.3,3187.2,0.62753]
[1738215368214,0.5096,3187.3,3187.1,1.0091]
[1738215368617,0.5096,3187.3,3187.2,0.62753]
[1738215369315,40.8,3187.4,3187.1,1.0091]
[1738215369509,40.8,3187.4,3187.3,0.62751]
[1738215370308,3.2078,3187.6,3187.1,1.0091]
[1738215370517,3.2078,3187.6,3187.5,0.62747]
[1738215370715,0.5133,3187.8,3187.7,0.62743]
[1738215370915,40.8,3187.9,3187.8,0.62741]
[1738215371714,3.2078,3188.0,3187.9,0.62739]
[1738215372115,44.0078,3188.0,3187.8,0.6274]
[1738215372325,0.5057,3187.9,3187.8,0.6274]
[1738215373523,44.0078,3188.0,3187.9,0.62739]
[1738215374024,44.0078,3188.0,3187.8,0.6274]
[1738215374717,44.0078,3188.0,3187.6,1.0346]
[1738215374915,44.0078,3188.0,3187.9,0.62739]
[1738215375219,44.0078,3188.0,3187.8,0.6274]
[1738215375417,44.0078,3188.0,3187.6,0.62744]
[1738215375617,2.74559107,3187.8,3187.3,0.5161]
[1738215375818,2.74559107,3187.8,3187.2,3.2078]
[1738215375819,0.62751,3187.3,3187.2,3.2078]
[1738215376022,2.74559107,3187.5,3187.0,0.00217838]
[1738215376221,3.37314107,3187.1,3187.0,0.00217838]
[1738215376427,43.54559107,3187.1,3186.7,0.00470285]
[1738215376631,1.56911,3186.7,3185.7,3.2078]
[1738215376821,3.37339107,3185.9,3185.6,4.84201111]
[1738215377134,0.62782,3185.7,3185.6,4.84201111]
[1738215377725,41.42782,3185.7,3185.6,4.84201111]
[1738215378026,40.8,3185.7,3185.6,5.46985111]
[1738215378331,0.5483,3185.8,3185.6,4.84201111]
[1738215378527,3.2078,3185.9,3185.8,0.6278]
[1738215378726,0.00470285,3186.0,3185.6,4.84201111]
[1738215378931,0.00470285,3186.0,3185.9,0.62779]
[1738215390344,0.00470285,3186.0,3185.5,0.534]
[1738215390538,0.00470285,3186.0,3185.6,0.62783]
[1738215390539,0.63247285,3186.0,3185.6,0.62783]
[1738215390736,0.63247285,3186.0,3185.5,0.62785]
[1738215390931,0.00470285,3186.0,3185.6,0.62783]